[Event "Titled Tuesday Blitz March 21 Late 2023"]
[White "cryptoguru02"]
[Black "Thomforde-Toates, Noah"]
[BlackFideId "30951992"]
[WhiteElo "2507"]
[BlackElo "2609"]
[Result "1-0"]
[Round "07"]
[TimeControl "180+2"]
[Date "2023.03.21"]
[WhiteClock "0:00:10"]
[BlackClock "0:00:07"]

1. d4 {[%clk 0:03:00]}  Nf6 {[%clk 0:02:59]} 2. c4 {[%clk 0:03:01]}  g6 {[%clk 0:02:59]} 3. Nc3 {[%clk 0:03:00]}  Bg7 {[%clk 0:02:59]} 4. e4 {[%clk 0:03:00]}  d6 {[%clk 0:02:59]} 5. Be2 {[%clk 0:03:00]}  O-O {[%clk 0:02:59]} 6. Be3 {[%clk 0:03:01]}  c5 {[%clk 0:02:59]} 7. d5 {[%clk 0:03:00]}  e6 {[%clk 0:02:58]} 8. Nf3 {[%clk 0:02:59]}  exd5 {[%clk 0:02:58]} 9. cxd5 {[%clk 0:03:00]}  b5 {[%clk 0:02:59]} 10. e5 {[%clk 0:02:53]}  dxe5 {[%clk 0:02:54]} 11. Bxc5 {[%clk 0:02:53]}  Re8 {[%clk 0:02:54]} 12. Bxb5 {[%clk 0:02:52]}  e4 {[%clk 0:02:54]} 13. Nd2 {[%clk 0:02:40]}  Bd7 {[%clk 0:02:45]} 14. Be2 {[%clk 0:02:37]}  Bf5 {[%clk 0:02:37]} 15. Nc4 {[%clk 0:02:34]}  Nbd7 {[%clk 0:02:36]} 16. Be3 {[%clk 0:02:34]}  Rb8 {[%clk 0:02:32]} 17. O-O {[%clk 0:02:28]}  Nb6 {[%clk 0:02:32]} 18. Nxb6 {[%clk 0:02:24]}  axb6 {[%clk 0:02:32]} 19. Qd2 {[%clk 0:02:17]}  h5 {[%clk 0:02:28]} 20. h3 {[%clk 0:02:16]}  Nd7 {[%clk 0:02:22]} 21. Bg5 {[%clk 0:01:50]}  e3 {[%clk 0:01:46]} 22. Bxe3 {[%clk 0:01:48]}  Qh4 {[%clk 0:01:46]} 23. Bg5 {[%clk 0:01:45]}  Bxc3 {[%clk 0:01:45]} 24. bxc3 {[%clk 0:01:27]}  Rxe2 {[%clk 0:01:44]} 25. Qxe2 {[%clk 0:01:24]}  Qxg5 {[%clk 0:01:44]} 26. f4 {[%clk 0:01:18]}  Qf6 {[%clk 0:01:42]} 27. g4 {[%clk 0:01:13]}  Qxc3 {[%clk 0:00:49]} 28. gxf5 {[%clk 0:01:09]}  Qxh3 {[%clk 0:00:47]} 29. fxg6 {[%clk 0:01:04]}  Qg3+ {[%clk 0:00:48]} 30. Qg2 {[%clk 0:01:03]}  Qe3+ {[%clk 0:00:48]} 31. Rf2 {[%clk 0:01:02]}  Nf6 {[%clk 0:00:45]} 32. Qf3 {[%clk 0:00:47]}  Qc5 {[%clk 0:00:40]} 33. Kg2 {[%clk 0:00:29]}  Ra8 {[%clk 0:00:32]} 34. Rd1 {[%clk 0:00:24]}  fxg6 {[%clk 0:00:31]} 35. d6 {[%clk 0:00:22]}  Ra3 {[%clk 0:00:24]} 36. Rd3 {[%clk 0:00:22]}  Rxd3 {[%clk 0:00:20]} 37. Qxd3 {[%clk 0:00:22]}  Qc6+ {[%clk 0:00:20]} 38. Rf3 {[%clk 0:00:12]}  Kg7 {[%clk 0:00:20]} 39. Kg3 {[%clk 0:00:06]}  Ne4+ {[%clk 0:00:19]} 40. Kg2 {[%clk 0:00:06]}  Nxd6 {[%clk 0:00:19]} 41. Qc3+ {[%clk 0:00:03]}  Qxc3 {[%clk 0:00:17]} 42. Rxc3 {[%clk 0:00:04]}  b5 {[%clk 0:00:14]} 43. Rc6 {[%clk 0:00:05]}  Nc4 {[%clk 0:00:14]} 44. Rc7+ {[%clk 0:00:04]}  Kf6 {[%clk 0:00:14]} 45. Rb7 {[%clk 0:00:05]}  Nd6 {[%clk 0:00:11]} 46. Rb6 {[%clk 0:00:05]}  Ke6 {[%clk 0:00:11]} 47. Kf3 {[%clk 0:00:05]}  Kd5 {[%clk 0:00:12]} 48. a3 {[%clk 0:00:05]}  Kc5 {[%clk 0:00:12]} 49. Rb8 {[%clk 0:00:06]}  Nf5 {[%clk 0:00:10]} 50. Rg8 {[%clk 0:00:05]}  Nd4+ {[%clk 0:00:09]} 51. Ke4 {[%clk 0:00:06]}  Nc2 {[%clk 0:00:06]} 52. Rxg6 {[%clk 0:00:06]}  Nxa3 {[%clk 0:00:07]} 53. Rg5+ {[%clk 0:00:06]}  Kd6 {[%clk 0:00:07]} 54. Rxh5 {[%clk 0:00:07]}  b4 {[%clk 0:00:07]} 55. Rh3 {[%clk 0:00:06]}  Nc4 {[%clk 0:00:06]} 56. f5 {[%clk 0:00:06]}  b3 {[%clk 0:00:05]} 57. Kd4 {[%clk 0:00:05]}  b2 {[%clk 0:00:05]} 58. Rb3 {[%clk 0:00:04]}  b1=Q {[%clk 0:00:02]} 59. Rxb1 {[%clk 0:00:04]}  Nd2 {[%clk 0:00:03]} 60. Rb6+ {[%clk 0:00:05]}  Ke7 {[%clk 0:00:04]} 61. Re6+ {[%clk 0:00:05]}  Kf7 {[%clk 0:00:04]} 62. Re2 {[%clk 0:00:06]}  Nf3+ {[%clk 0:00:04]} 63. Ke4 {[%clk 0:00:05]}  Ng5+ {[%clk 0:00:05]} 64. Kf4 {[%clk 0:00:05]}  Nh7 {[%clk 0:00:05]} 65. Ra2 {[%clk 0:00:05]}  Nf6 {[%clk 0:00:05]} 66. Ra7+ {[%clk 0:00:06]}  Kf8 {[%clk 0:00:05]} 67. Ra6 {[%clk 0:00:07]}  Nd5+ {[%clk 0:00:06]} 68. Kg5 {[%clk 0:00:07]}  Ne7 {[%clk 0:00:05]} 69. Ra8+ {[%clk 0:00:07]}  Kf7 {[%clk 0:00:06]} 70. Ra7 {[%clk 0:00:08]}  Kf8 {[%clk 0:00:06]} 71. Rxe7 {[%clk 0:00:09]}  Kxe7 {[%clk 0:00:06]} 72. Kg6 {[%clk 0:00:10]}  Kf8 {[%clk 0:00:07]} 73. Kf6 {[%clk 0:00:09]}  Ke8 {[%clk 0:00:06]} 74. Kg7 {[%clk 0:00:09]}  Ke7 {[%clk 0:00:07]} 75. f6+ {[%clk 0:00:10]} 1-0


[Site "https://www.chess.com"]

[Event "Titled Tuesday Blitz March 21 Late 2023"]
[White "Makhnev, Denis"]
[Black "Tworuszka, Michal"]
[WhiteFideId "13707647"]
[BlackFideId "1117858"]
[WhiteElo "2525"]
[BlackElo "2456"]
[Result "1-0"]
[Round "07"]
[TimeControl "180+2"]
[Date "2023.03.21"]
[WhiteClock "0:02:01"]
[BlackClock "0:00:56"]

1. d4 {[%clk 0:02:58]}  Nf6 {[%clk 0:02:55]} 2. Nc3 {[%clk 0:02:59]}  d5 {[%clk 0:02:54]} 3. Bf4 {[%clk 0:02:59]}  c5 {[%clk 0:02:53]} 4. e3 {[%clk 0:02:58]}  cxd4 {[%clk 0:02:52]} 5. exd4 {[%clk 0:02:58]}  a6 {[%clk 0:02:53]} 6. Nf3 {[%clk 0:02:58]}  Nc6 {[%clk 0:02:53]} 7. Ne5 {[%clk 0:02:58]}  Bf5 {[%clk 0:02:52]} 8. Nxc6 {[%clk 0:02:53]}  bxc6 {[%clk 0:02:51]} 9. Bd3 {[%clk 0:02:54]}  Bg6 {[%clk 0:02:49]} 10. O-O {[%clk 0:02:53]}  e6 {[%clk 0:02:49]} 11. Na4 {[%clk 0:02:49]}  Bd6 {[%clk 0:02:44]} 12. Qf3 {[%clk 0:02:45]}  O-O {[%clk 0:02:36]} 13. Rac1 {[%clk 0:02:39]}  Ne4 {[%clk 0:02:25]} 14. Rfe1 {[%clk 0:02:31]}  Qf6 {[%clk 0:02:06]} 15. Be3 {[%clk 0:02:30]}  Qxf3 {[%clk 0:02:04]} 16. gxf3 {[%clk 0:02:31]}  Nf6 {[%clk 0:02:02]} 17. Bf1 {[%clk 0:02:28]}  Nd7 {[%clk 0:01:41]} 18. c4 {[%clk 0:02:27]}  e5 {[%clk 0:01:32]} 19. cxd5 {[%clk 0:02:22]}  cxd5 {[%clk 0:01:30]} 20. Rc6 {[%clk 0:02:23]}  Bb4 {[%clk 0:01:22]} 21. Rd1 {[%clk 0:02:23]}  a5 {[%clk 0:01:12]} 22. a3 {[%clk 0:02:16]}  Nb8 {[%clk 0:01:11]} 23. Rcc1 {[%clk 0:02:09]}  exd4 {[%clk 0:01:07]} 24. Bxd4 {[%clk 0:02:00]}  Bd6 {[%clk 0:01:05]} 25. Nb6 {[%clk 0:02:01]}  Ra7 {[%clk 0:01:02]} 26. Nc8 {[%clk 0:02:01]}  Rd7 {[%clk 0:01:01]} 27. Nxd6 {[%clk 0:02:01]}  Rxd6 {[%clk 0:01:00]} 28. Bc5 {[%clk 0:02:02]}  Rdd8 {[%clk 0:00:58]} 29. Bxf8 {[%clk 0:02:01]}  Kxf8 {[%clk 0:00:58]} 30. Rc5 {[%clk 0:02:01]}  d4 {[%clk 0:00:56]} 31. Bd3 {[%clk 0:02:01]} 1-0


[Site "https://www.chess.com"]

[Event "Titled Tuesday Blitz March 21 Late 2023"]
[White "Costachi, Mihnea"]
[Black "Kashefi, Amir Hosein"]
[WhiteFideId "1217518"]
[BlackFideId "12557935"]
[WhiteElo "2456"]
[BlackElo "2078"]
[Result "1-0"]
[Round "07"]
[TimeControl "180+2"]
[Date "2023.03.21"]
[WhiteClock "0:00:57"]
[BlackClock "0:00:02"]

1. Nc3 {[%clk 0:03:00]}  d5 {[%clk 0:02:50]} 2. d4 {[%clk 0:03:01]}  c6 {[%clk 0:02:49]} 3. Bf4 {[%clk 0:03:00]}  Nf6 {[%clk 0:02:49]} 4. e3 {[%clk 0:03:01]}  Bf5 {[%clk 0:02:48]} 5. Nf3 {[%clk 0:03:01]}  e6 {[%clk 0:02:47]} 6. Ne5 {[%clk 0:03:01]}  Nbd7 {[%clk 0:02:47]} 7. g4 {[%clk 0:03:01]}  Bg6 {[%clk 0:02:24]} 8. h4 {[%clk 0:03:01]}  Nxe5 {[%clk 0:01:14]} 9. dxe5 {[%clk 0:03:00]}  d4 {[%clk 0:01:08]} 10. Qxd4 {[%clk 0:02:37]}  Qxd4 {[%clk 0:01:06]} 11. exd4 {[%clk 0:02:38]}  Nxg4 {[%clk 0:01:07]} 12. Be2 {[%clk 0:02:26]}  h5 {[%clk 0:01:06]} 13. Bxg4 {[%clk 0:02:22]}  hxg4 {[%clk 0:01:07]} 14. O-O-O {[%clk 0:02:23]}  Bb4 {[%clk 0:00:59]} 15. Bg3 {[%clk 0:02:03]}  Bxc3 {[%clk 0:00:56]} 16. bxc3 {[%clk 0:02:04]}  b5 {[%clk 0:00:55]} 17. Kd2 {[%clk 0:02:01]}  Be4 {[%clk 0:00:54]} 18. Rhe1 {[%clk 0:02:02]}  Bd5 {[%clk 0:00:53]} 19. a4 {[%clk 0:02:02]}  a6 {[%clk 0:00:51]} 20. Ra1 {[%clk 0:02:01]}  Kd7 {[%clk 0:00:50]} 21. Ke3 {[%clk 0:02:01]}  Kc7 {[%clk 0:00:50]} 22. Kf4 {[%clk 0:02:02]}  Bf3 {[%clk 0:00:46]} 23. Reb1 {[%clk 0:01:58]}  Kd7 {[%clk 0:00:38]} 24. c4 {[%clk 0:01:57]}  Be2 {[%clk 0:00:36]} 25. cxb5 {[%clk 0:01:54]}  axb5 {[%clk 0:00:35]} 26. Re1 {[%clk 0:01:36]}  Bf3 {[%clk 0:00:32]} 27. axb5 {[%clk 0:01:37]}  cxb5 {[%clk 0:00:32]} 28. Reb1 {[%clk 0:01:37]}  Kc6 {[%clk 0:00:31]} 29. Ke3 {[%clk 0:01:34]}  Ra4 {[%clk 0:00:11]} 30. Rc1 {[%clk 0:01:29]}  Rha8 {[%clk 0:00:10]} 31. Rab1 {[%clk 0:01:30]}  Rc4 {[%clk 0:00:10]} 32. Rb3 {[%clk 0:01:27]}  Ra2 {[%clk 0:00:10]} 33. c3 {[%clk 0:01:22]}  Re2+ {[%clk 0:00:09]} 34. Kf4 {[%clk 0:01:23]}  f6 {[%clk 0:00:02]} 35. exf6 {[%clk 0:01:20]}  gxf6 {[%clk 0:00:03]} 36. Bh2 {[%clk 0:01:18]}  Rxf2 {[%clk 0:00:03]} 37. Bg1 {[%clk 0:01:17]}  Re2 {[%clk 0:00:02]} 38. h5 {[%clk 0:01:17]}  e5+ {[%clk 0:00:02]} 39. Kf5 {[%clk 0:01:18]}  exd4 {[%clk 0:00:02]} 40. Bxd4 {[%clk 0:01:18]}  Be4+ {[%clk 0:00:01]} 41. Kxg4 {[%clk 0:01:14]}  Rd2 {[%clk 0:00:01]} 42. Rf1 {[%clk 0:01:10]}  f5+ {[%clk 0:00:02]} 43. Kg5 {[%clk 0:01:11]}  Rg2+ {[%clk 0:00:02]} 44. Kf6 {[%clk 0:01:11]}  Kd5 {[%clk 0:00:03]} 45. Rxb5+ {[%clk 0:01:10]}  Kd6 {[%clk 0:00:03]} 46. Be5+ {[%clk 0:01:05]}  Kc6 {[%clk 0:00:03]} 47. Rb8 {[%clk 0:01:03]}  Rg4 {[%clk 0:00:02]} 48. Rf2 {[%clk 0:00:57]} 1-0


[Site "https://www.chess.com"]

[Event "Titled Tuesday Blitz March 21 Late 2023"]
[White "Mahdavi, Reza"]
[Black "Shapiro, Viktor"]
[WhiteFideId "12595926"]
[BlackFideId "4175700"]
[WhiteElo "2208"]
[BlackElo "2152"]
[Result "1-0"]
[Round "07"]
[TimeControl "180+2"]
[Date "2023.03.21"]
[WhiteClock "0:01:06"]
[BlackClock "0:00:02"]

1. Nf3 {[%clk 0:02:47]}  Nf6 {[%clk 0:03:00]} 2. g3 {[%clk 0:02:47]}  c5 {[%clk 0:03:00]} 3. Bg2 {[%clk 0:02:47]}  Nc6 {[%clk 0:03:01]} 4. O-O {[%clk 0:02:48]}  g6 {[%clk 0:03:01]} 5. c4 {[%clk 0:02:48]}  Bg7 {[%clk 0:03:01]} 6. Nc3 {[%clk 0:02:49]}  d6 {[%clk 0:03:01]} 7. d4 {[%clk 0:02:49]}  cxd4 {[%clk 0:03:02]} 8. Nxd4 {[%clk 0:02:50]}  Bd7 {[%clk 0:03:03]} 9. b3 {[%clk 0:02:48]}  a6 {[%clk 0:03:03]} 10. Bb2 {[%clk 0:02:48]}  Rc8 {[%clk 0:03:04]} 11. Nc2 {[%clk 0:02:47]}  O-O {[%clk 0:03:04]} 12. Qd2 {[%clk 0:02:48]}  Qa5 {[%clk 0:03:03]} 13. Rfd1 {[%clk 0:02:49]}  Rfd8 {[%clk 0:02:46]} 14. e4 {[%clk 0:02:07]}  b5 {[%clk 0:02:45]} 15. Ne3 {[%clk 0:02:04]}  Ne5 {[%clk 0:02:30]} 16. f4 {[%clk 0:01:58]}  Neg4 {[%clk 0:02:19]} 17. Ned5 {[%clk 0:01:55]}  Kf8 {[%clk 0:01:40]} 18. b4 {[%clk 0:01:48]}  Nxd5 {[%clk 0:01:17]} 19. Nxd5 {[%clk 0:01:39]}  Qa4 {[%clk 0:01:03]} 20. Bxg7+ {[%clk 0:01:38]}  Kxg7 {[%clk 0:01:03]} 21. Qb2+ {[%clk 0:01:38]}  f6 {[%clk 0:00:58]} 22. Nb6 {[%clk 0:01:38]}  bxc4 {[%clk 0:00:21]} 23. Nxa4 {[%clk 0:01:29]}  Bxa4 {[%clk 0:00:22]} 24. Rdc1 {[%clk 0:01:29]}  e5 {[%clk 0:00:14]} 25. Bh3 {[%clk 0:01:22]}  h5 {[%clk 0:00:13]} 26. Bxg4 {[%clk 0:01:23]}  hxg4 {[%clk 0:00:14]} 27. Qd2 {[%clk 0:01:23]}  d5 {[%clk 0:00:09]} 28. fxe5 {[%clk 0:01:17]}  fxe5 {[%clk 0:00:09]} 29. exd5 {[%clk 0:01:18]}  Rd6 {[%clk 0:00:05]} 30. Qe3 {[%clk 0:01:09]}  Rxd5 {[%clk 0:00:04]} 31. Rf1 {[%clk 0:01:08]}  c3 {[%clk 0:00:03]} 32. Qa7+ {[%clk 0:01:07]}  Kh6 {[%clk 0:00:02]} 33. Rf7 {[%clk 0:01:06]} 1-0


[Site "https://www.chess.com"]

[Event "Titled Tuesday Blitz March 21 Late 2023"]
[White "Stelmaszyk, Nico"]
[Black "Martinez Reyes, Pedro Ramon"]
[WhiteFideId "16200462"]
[BlackFideId "3901807"]
[WhiteElo "2255"]
[BlackElo "2340"]
[Result "0-1"]
[Round "07"]
[TimeControl "180+2"]
[Date "2023.03.21"]
[WhiteClock "0:00:04"]
[BlackClock "0:02:23"]

1. e4 {[%clk 0:02:52]}  c6 {[%clk 0:02:59]} 2. Nf3 {[%clk 0:02:50]}  d5 {[%clk 0:02:58]} 3. d3 {[%clk 0:02:51]}  dxe4 {[%clk 0:02:58]} 4. dxe4 {[%clk 0:02:52]}  Qxd1+ {[%clk 0:02:58]} 5. Kxd1 {[%clk 0:02:53]}  Bg4 {[%clk 0:02:57]} 6. Nd2 {[%clk 0:02:49]}  Bc8 {[%clk 0:02:57]} 7. Nb1 {[%clk 0:02:49]}  Bg4 {[%clk 0:02:57]} 8. Nd2 {[%clk 0:02:49]}  Nd7 {[%clk 0:02:57]} 9. h3 {[%clk 0:02:46]}  Bxf3+ {[%clk 0:02:55]} 10. Nxf3 {[%clk 0:02:47]}  g6 {[%clk 0:02:55]} 11. c3 {[%clk 0:02:46]}  O-O-O {[%clk 0:02:55]} 12. Kc2 {[%clk 0:02:46]}  Bh6 {[%clk 0:02:54]} 13. Bc4 {[%clk 0:02:45]}  Bxc1 {[%clk 0:02:51]} 14. Raxc1 {[%clk 0:02:46]}  e6 {[%clk 0:02:52]} 15. Rcd1 {[%clk 0:02:42]}  h6 {[%clk 0:02:52]} 16. Rd2 {[%clk 0:02:38]}  Ne7 {[%clk 0:02:52]} 17. Rhd1 {[%clk 0:02:38]}  Kc7 {[%clk 0:02:52]} 18. a4 {[%clk 0:02:36]}  g5 {[%clk 0:02:51]} 19. Be2 {[%clk 0:02:34]}  Ng6 {[%clk 0:02:50]} 20. g3 {[%clk 0:02:32]}  Nf6 {[%clk 0:02:38]} 21. Rxd8 {[%clk 0:02:25]}  Rxd8 {[%clk 0:02:38]} 22. Rxd8 {[%clk 0:02:23]}  Kxd8 {[%clk 0:02:39]} 23. Nd2 {[%clk 0:02:24]}  h5 {[%clk 0:02:31]} 24. Bd3 {[%clk 0:02:06]}  h4 {[%clk 0:02:30]} 25. Nf3 {[%clk 0:01:55]}  hxg3 {[%clk 0:02:27]} 26. fxg3 {[%clk 0:01:53]}  g4 {[%clk 0:02:28]} 27. hxg4 {[%clk 0:01:51]}  Nxg4 {[%clk 0:02:29]} 28. a5 {[%clk 0:01:48]}  N6e5 {[%clk 0:02:26]} 29. Nd2 {[%clk 0:01:39]}  Ne3+ {[%clk 0:02:25]} 30. Kb3 {[%clk 0:01:37]}  Nxd3 {[%clk 0:02:26]} 31. a6 {[%clk 0:01:37]}  Nc5+ {[%clk 0:02:25]} 32. Kb4 {[%clk 0:00:04]}  Nxa6+ {[%clk 0:02:26]} 33. Ka5 {[%clk 0:00:05]}  Nc5 {[%clk 0:02:24]} 34. b4 {[%clk 0:00:04]}  b6# {[%clk 0:02:23]} 0-1


[Site "https://www.chess.com"]

[Event "Titled Tuesday Blitz March 21 Late 2023"]
[White "Herrera Reyes, Jose Antonio"]
[Black "Becerra, Juan David"]
[WhiteFideId "2274914"]
[BlackFideId "4404998"]
[WhiteElo "2273"]
[BlackElo "2282"]
[Result "1-0"]
[Round "07"]
[TimeControl "180+2"]
[Date "2023.03.21"]
[WhiteClock "0:00:13"]
[BlackClock "0:00:04"]

1. Nf3 {[%clk 0:03:00]}  d5 {[%clk 0:02:58]} 2. g3 {[%clk 0:03:01]}  Bg4 {[%clk 0:02:57]} 3. Bg2 {[%clk 0:03:02]}  Nd7 {[%clk 0:02:57]} 4. O-O {[%clk 0:03:02]}  Ngf6 {[%clk 0:02:57]} 5. d3 {[%clk 0:03:02]}  e6 {[%clk 0:02:57]} 6. c3 {[%clk 0:03:03]}  Be7 {[%clk 0:02:56]} 7. b4 {[%clk 0:03:02]}  a5 {[%clk 0:02:53]} 8. b5 {[%clk 0:03:02]}  O-O {[%clk 0:02:53]} 9. a4 {[%clk 0:03:02]}  c5 {[%clk 0:02:52]} 10. Nbd2 {[%clk 0:02:59]}  Rc8 {[%clk 0:02:44]} 11. Ba3 {[%clk 0:02:58]}  b6 {[%clk 0:02:44]} 12. Qc2 {[%clk 0:02:57]}  Qc7 {[%clk 0:02:32]} 13. Rfe1 {[%clk 0:02:57]}  Rfe8 {[%clk 0:02:30]} 14. e4 {[%clk 0:02:53]}  Bd6 {[%clk 0:02:16]} 15. Bb2 {[%clk 0:02:43]}  c4 {[%clk 0:02:05]} 16. d4 {[%clk 0:02:39]}  dxe4 {[%clk 0:02:02]} 17. Nxe4 {[%clk 0:02:40]}  Nxe4 {[%clk 0:01:58]} 18. Qxe4 {[%clk 0:02:40]}  Nf6 {[%clk 0:01:58]} 19. Qc2 {[%clk 0:02:39]}  Bf5 {[%clk 0:01:49]} 20. Qc1 {[%clk 0:02:39]}  Be4 {[%clk 0:01:49]} 21. Qg5 {[%clk 0:02:13]}  Qb7 {[%clk 0:01:43]} 22. Nh4 {[%clk 0:02:13]}  Bxg2 {[%clk 0:01:42]} 23. Nxg2 {[%clk 0:02:13]}  h6 {[%clk 0:01:35]} 24. Qd2 {[%clk 0:02:13]}  Qf3 {[%clk 0:01:30]} 25. Re3 {[%clk 0:02:11]}  Qg4 {[%clk 0:01:28]} 26. Rae1 {[%clk 0:02:09]}  Qh3 {[%clk 0:01:28]} 27. f3 {[%clk 0:01:54]}  Qf5 {[%clk 0:00:39]} 28. Qc1 {[%clk 0:01:47]}  Nd5 {[%clk 0:00:37]} 29. Nh4 {[%clk 0:01:43]}  Qh3 {[%clk 0:00:28]} 30. Re4 {[%clk 0:01:36]}  Bxg3 {[%clk 0:00:25]} 31. hxg3 {[%clk 0:01:34]}  Qxg3+ {[%clk 0:00:26]} 32. Ng2 {[%clk 0:01:34]}  Qxf3 {[%clk 0:00:24]} 33. Qd1 {[%clk 0:01:26]}  Qxd1 {[%clk 0:00:11]} 34. Rxd1 {[%clk 0:01:27]}  g5 {[%clk 0:00:08]} 35. Rde1 {[%clk 0:01:24]}  Kg7 {[%clk 0:00:08]} 36. Ne3 {[%clk 0:01:22]}  Nf4 {[%clk 0:00:07]} 37. Rf1 {[%clk 0:01:08]}  Nd3 {[%clk 0:00:04]} 38. Ba3 {[%clk 0:01:03]}  f5 {[%clk 0:00:05]} 39. Re5 {[%clk 0:01:03]}  Nxe5 {[%clk 0:00:04]} 40. dxe5 {[%clk 0:01:04]}  Kf7 {[%clk 0:00:04]} 41. Bd6 {[%clk 0:01:04]}  Red8 {[%clk 0:00:05]} 42. Kf2 {[%clk 0:01:03]}  Kg6 {[%clk 0:00:03]} 43. Kf3 {[%clk 0:01:02]}  Rd7 {[%clk 0:00:03]} 44. Rd1 {[%clk 0:01:01]}  f4 {[%clk 0:00:01]} 45. Ng4 {[%clk 0:00:59]}  Rc5 {[%clk 0:00:02]} 46. Ke4 {[%clk 0:00:56]}  Rd8 {[%clk 0:00:01]} 47. Rd4 {[%clk 0:00:50]}  Rd5 {[%clk 0:00:01]} 48. Rxd5 {[%clk 0:00:48]}  exd5+ {[%clk 0:00:02]} 49. Kxd5 {[%clk 0:00:48]}  h5 {[%clk 0:00:03]} 50. Nf2 {[%clk 0:00:43]}  Kf5 {[%clk 0:00:03]} 51. Kc6 {[%clk 0:00:22]}  g4 {[%clk 0:00:03]} 52. Kxb6 {[%clk 0:00:19]}  Re8 {[%clk 0:00:03]} 53. Kc6 {[%clk 0:00:17]}  f3 {[%clk 0:00:04]} 54. Kd7 {[%clk 0:00:17]}  Re6 {[%clk 0:00:03]} 55. b6 {[%clk 0:00:17]}  g3 {[%clk 0:00:04]} 56. Nh3 {[%clk 0:00:17]}  f2 {[%clk 0:00:03]} 57. b7 {[%clk 0:00:16]}  f1=Q {[%clk 0:00:03]} 58. b8=Q {[%clk 0:00:16]}  Qxh3 {[%clk 0:00:03]} 59. Qf8+ {[%clk 0:00:16]}  Ke4 {[%clk 0:00:04]} 60. Kc6 {[%clk 0:00:16]}  Kd3 {[%clk 0:00:03]} 61. Qf3+ {[%clk 0:00:14]}  Kc2 {[%clk 0:00:03]} 62. Qe2+ {[%clk 0:00:13]}  Kb3 {[%clk 0:00:04]} 63. Kd5 {[%clk 0:00:13]}  Qg4 {[%clk 0:00:04]} 64. Qd1+ {[%clk 0:00:13]}  Kb2 {[%clk 0:00:04]} 65. Qd2+ {[%clk 0:00:13]}  Kb3 {[%clk 0:00:04]} 66. Qc1 {[%clk 0:00:13]}  Re8 {[%clk 0:00:03]} 67. Qa3+ {[%clk 0:00:13]}  Kc2 {[%clk 0:00:04]} 68. Qa2+ {[%clk 0:00:13]}  Kd3 {[%clk 0:00:04]} 69. Qb1+ {[%clk 0:00:13]}  Ke3 {[%clk 0:00:05]} 70. Bc5+ {[%clk 0:00:13]}  Kf3 {[%clk 0:00:04]} 71. Qf1# {[%clk 0:00:13]} 1-0


[Site "https://www.chess.com"]

[Event "Titled Tuesday Blitz March 21 Late 2023"]
[White "Kurtz, Eric M"]
[Black "Gonzalez, Francisco Silva"]
[WhiteFideId "30939763"]
[BlackFideId "1512285"]
[WhiteElo "2625"]
[BlackElo "2074"]
[Result "1-0"]
[Round "07"]
[TimeControl "180+2"]
[Date "2023.03.21"]
[WhiteClock "0:00:52"]
[BlackClock "0:01:04"]

1. Nf3 {[%clk 0:03:00]}  d5 {[%clk 0:02:59]} 2. c4 {[%clk 0:03:00]}  e6 {[%clk 0:02:58]} 3. g3 {[%clk 0:03:00]}  a6 {[%clk 0:02:58]} 4. b3 {[%clk 0:02:58]}  c5 {[%clk 0:02:55]} 5. Bb2 {[%clk 0:02:57]}  d4 {[%clk 0:02:55]} 6. Bg2 {[%clk 0:02:57]}  Nc6 {[%clk 0:02:55]} 7. e3 {[%clk 0:02:57]}  e5 {[%clk 0:02:55]} 8. exd4 {[%clk 0:02:57]}  exd4 {[%clk 0:02:54]} 9. O-O {[%clk 0:02:57]}  Nf6 {[%clk 0:02:54]} 10. d3 {[%clk 0:02:54]}  Be7 {[%clk 0:02:54]} 11. Na3 {[%clk 0:02:53]}  O-O {[%clk 0:02:53]} 12. Nc2 {[%clk 0:02:54]}  a5 {[%clk 0:02:54]} 13. a3 {[%clk 0:02:54]}  h6 {[%clk 0:02:52]} 14. b4 {[%clk 0:02:52]}  axb4 {[%clk 0:02:50]} 15. axb4 {[%clk 0:02:53]}  Rxa1 {[%clk 0:02:49]} 16. Bxa1 {[%clk 0:02:54]}  b6 {[%clk 0:02:45]} 17. Re1 {[%clk 0:02:52]}  Qc7 {[%clk 0:02:40]} 18. b5 {[%clk 0:02:39]}  Nb8 {[%clk 0:02:34]} 19. Bb2 {[%clk 0:02:40]}  Bd6 {[%clk 0:02:33]} 20. Nd2 {[%clk 0:02:26]}  Bg4 {[%clk 0:02:32]} 21. Bf3 {[%clk 0:02:25]}  Bf5 {[%clk 0:02:28]} 22. Ne4 {[%clk 0:02:10]}  Nxe4 {[%clk 0:02:26]} 23. Bxe4 {[%clk 0:02:11]}  Bxe4 {[%clk 0:02:24]} 24. Rxe4 {[%clk 0:02:12]}  Nd7 {[%clk 0:02:24]} 25. Qf3 {[%clk 0:01:59]}  Nf6 {[%clk 0:02:23]} 26. Re1 {[%clk 0:01:59]}  Qd7 {[%clk 0:02:18]} 27. Ba3 {[%clk 0:01:55]}  Re8 {[%clk 0:02:18]} 28. Rxe8+ {[%clk 0:01:54]}  Qxe8 {[%clk 0:02:18]} 29. Nxd4 {[%clk 0:01:48]}  Qe1+ {[%clk 0:02:09]} 30. Kg2 {[%clk 0:01:48]}  Bxg3 {[%clk 0:02:08]} 31. hxg3 {[%clk 0:01:39]}  Qc3 {[%clk 0:01:56]} 32. Bxc5 {[%clk 0:01:32]}  bxc5 {[%clk 0:01:55]} 33. Nc6 {[%clk 0:01:31]}  Qb3 {[%clk 0:01:53]} 34. Ne5 {[%clk 0:01:26]}  Qb2 {[%clk 0:01:45]} 35. Qa8+ {[%clk 0:01:24]}  Kh7 {[%clk 0:01:44]} 36. Nxf7 {[%clk 0:01:23]}  Kg6 {[%clk 0:01:41]} 37. Nd6 {[%clk 0:01:18]}  Qd4 {[%clk 0:01:38]} 38. Ne4 {[%clk 0:01:13]}  Qxd3 {[%clk 0:01:37]} 39. Nxf6 {[%clk 0:01:10]}  gxf6 {[%clk 0:01:36]} 40. Qd5 {[%clk 0:01:04]}  Qa3 {[%clk 0:01:12]} 41. b6 {[%clk 0:01:03]}  Qb4 {[%clk 0:01:13]} 42. b7 {[%clk 0:01:02]}  Qb6 {[%clk 0:01:07]} 43. Qg8+ {[%clk 0:01:00]}  Kf5 {[%clk 0:01:05]} 44. b8=Q {[%clk 0:01:01]}  Qc6+ {[%clk 0:01:03]} 45. Qd5+ {[%clk 0:01:00]}  Kg4 {[%clk 0:01:04]} 46. Qg8# {[%clk 0:00:52]} 1-0


[Site "https://www.chess.com"]